Cogmind - Beta 11.1 @@@ ROGUE MODE // 2022.05.13 @ 00:28:55 Player: Olga Result: Self-destructed Performance ------------- Evolutions (6) 3000 Regions Visited (8) 1600 Robots Destroyed (1) 5 Value Destroyed (1) 1 Prototype IDs (0) 0 Alien Tech Used (0) 0 Bonus (1825) 1825 TOTAL SCORE: 6431 Bonus ------- Pacifist 1325 Entered DSFs 500 Cogmind --------- Core Integrity 510/1150 Matter 272/300 Energy 99/100 System Corruption 0% Temperature Cool (18) Movement Core (50) Location -4/Factory Parts ------- > --- POWER (13) ------- (None) > --- PROPULSION (2) --- (None) > --- UTILITY (2) ------ (None) > --- WEAPON (2) ------- (None) > --- INVENTORY (5) ---- Hacking Suite Hacking Suite Mini Grenade Launcher Force Lance Peak State ------------ > --- POWER ------------ (None) > --- PROPULSION ------- (None) > --- UTILITY ---------- (None) > --- WEAPON ----------- Mini Grenade Launcher > --- INVENTORY -------- Hacking Suite [Rating: 2] Favorites ----------- Power None Propulsion None Utility None Weapon Mini Grenade Launcher Launcher Mini Grenade Launcher Build | -11 -10 -9 -8 -7 -6 -5 -5 -4 ------- Run | Scr Mat Mat Mat Fac Fac Fac DSF Fac Slots Evolved 12 | . . 2 2 2 2 2 . 2 Power 12 | . . 2 2 2 2 2 . 2 Propulsion . | . . . . . . . . . Utility . | . . . . . . . . . Weapon . | . . . . . . . . . Parts Attached 1 | . . . . . 1 . . . Power . | . . . . . . . . . Engine . | . . . . . . . . . Core . | . . . . . . . . . Reactor . | . . . . . . . . . Propulsion . | . . . . . . . . . Treads . | . . . . . . . . . Leg . | . . . . . . . . . Wheel . | . . . . . . . . . Hover . | . . . . . . . . . Flight . | . . . . . . . . . Utility . | . . . . . . . . . Device . | . . . . . . . . . Storage . | . . . . . . . . . Processor . | . . . . . . . . . Hackware . | . . . . . . . . . Protection . | . . . . . . . . . Artifact . | . . . . . . . . . Weapon 1 | . . . . . 1 . . . Energy Gun . | . . . . . . . . . Energy Cannon . | . . . . . . . . . Ballistic Gun . | . . . . . . . . . Ballistic Cannon . | . . . . . . . . . Launcher 1 | . . . . . 1 . . . Special Weapon . | . . . . . . . . . Impact Weapon . | . . . . . . . . . Slashing Weapon . | . . . . . . . . . Piercing Weapon . | . . . . . . . . . Special Melee Weapon . | . . . . . . . . . Unidentified Prototypes . | . . . . . . . . . Parts Lost . | . . . . . . . . . Power . | . . . . . . . . . Propulsion . | . . . . . . . . . Utility . | . . . . . . . . . Weapon . | . . . . . . . . . Highest Loss Streak . | . . . . . . . . . To Critical Strikes . | . . . . . . . . . Average Slot Usage (%) . | . . . . . . . . . Naked Turns 401 | . 17 44 33 83 70 25 27 102 Heaviest Build 1 | . . . . . 1 . . . Greatest Support 3 | 3 3 3 3 3 3 3 3 3 Greatest Overweight (x) . | . . . . . . . . . Average Overweight (x) . | . . . . . . . . . Largest Inventory Capacity 5 | 5 5 5 5 5 5 5 5 5 Average Capacity 5 | 5 5 5 5 5 5 5 5 5 Most Carried 4 | 4 . 1 1 2 3 3 3 4 Average Carried 2 | 2 . . 1 1 2 3 3 3 Final Capacity 5 | 5 5 5 5 5 5 5 5 5 Final Carried 4 | . . 1 1 2 3 3 3 4 Class Distribution -------------------- 100% | Mutant Dominant Class ---------------- Mutant | -9/Materials Mutant | -8/Materials Mutant | -7/Factory Mutant | -6/Factory Mutant | -5/Factory Mutant | -5/DSF Mutant | -4/Factory Resources | -11 -10 -9 -8 -7 -6 -5 -5 -4 ----------- Run | Scr Mat Mat Mat Fac Fac Fac DSF Fac Matter Collected 200 | 200 . . . . . . . . Remotely . | . . . . . . . . . Salvage Created 9 | . . . . . 9 . . . Parts 3 | . . . . . 3 . . . Haulers Intercepted . | . . . . . . . . . Recyclers Shooed . | . . . . . . . . . Parts Field Recycled . | . . . . . . . . . Retrieved Matter . | . . . . . . . . . Parts Self-Destructed . | . . . . . . . . . Prevented . | . . . . . . . . . Kills | -11 -10 -9 -8 -7 -6 -5 -5 -4 ------- Run | Scr Mat Mat Mat Fac Fac Fac DSF Fac Combat Hostiles Destroyed . | . . . . . . . . . Classes Destroyed 1 | . . . . . 1 . . . Worker 1 | . . . . . 1 . . . Best Kill Streak 1 | . . . . . 1 . . . Combat Bots Only . | . . . . . . . . . Max Kills in Single Turn 1 | . . . . . 1 . . . Gunslinging . | . . . . . . . . . Exploded . | . . . . . . . . . Melee . | . . . . . . . . . Uniques/NPCs Destroyed . | . . . . . . . . . Combat | -11 -10 -9 -8 -7 -6 -5 -5 -4 -------- Run | Scr Mat Mat Mat Fac Fac Fac DSF Fac Damage Taken 1317 | . 2 32 153 . 176 . 314 640 Core 1298 | . 2 32 153 . 157 . 314 640 Absorbed by Shields . | . . . . . . . . . Core Remaining (%) 87 | 100 99 92 72 100 81 . 68 . Volleys Fired 4 | . . . . . 4 . . . Largest 1 | . . . . . 1 . . . Hottest 30 | . . . . . 30 . . . Shots Fired 4 | . . . . . 4 . . . Gun . | . . . . . . . . . Cannon . | . . . . . . . . . Launcher 4 | . . . . . 4 . . . Special . | . . . . . . . . . Kinetic . | . . . . . . . . . Thermal . | . . . . . . . . . Explosive 4 | . . . . . 4 . . . Electromagnetic . | . . . . . . . . . Robot Hit Streak . | . . . . . . . . . Robot Miss Streak . | . . . . . . . . . Penetration Max . | . . . . . . . . . Secondary Targets . | . . . . . . . . . Shots Hit Robots . | . . . . . . . . . Core Hits 3 | . . 2 . . 1 . . . Critical Kills . | . . . . . . . . . Critical Parts Destroyed . | . . . . . . . . . Critical Strikes . | . . . . . . . . . Melee Attacks . | . . . . . . . . . Impact . | . . . . . . . . . Slashing . | . . . . . . . . . Piercing . | . . . . . . . . . Sneak Attacks . | . . . . . . . . . Combat Hostiles . | . . . . . . . . . Follow-up Attacks . | . . . . . . . . . Damage Inflicted 130 | . 5 8 . . 117 . . . Guns . | . . . . . . . . . Cannons . | . . . . . . . . . Explosions 89 | . . . . . 89 . . . Melee . | . . . . . . . . . Ramming 41 | . 5 8 . . 28 . . . Kinetic . | . . . . . . . . . Thermal . | . . . . . . . . . Explosive 89 | . . . . . 89 . . . Electromagnetic . | . . . . . . . . . Impact . | . . . . . . . . . Slashing . | . . . . . . . . . Piercing . | . . . . . . . . . Highest Corruption . | . . . . . . . . . Average Corruption . | . . . . . . . . . Corruption Purged . | . . . . . . . . . Corruption Blocked . | . . . . . . . . . Overload Shots . | . . . . . . . . . Overflow Damage 20 | . . . . . 20 . . . Projectiles . | . . . . . . . . . Explosions 20 | . . . . . 20 . . . Melee . | . . . . . . . . . Knockbacks . | . . . . . . . . . Impact . | . . . . . . . . . Kinetic . | . . . . . . . . . Secondary . | . . . . . . . . . Self-Inflicted Damage 56 | . 2 4 . . 50 . . . Shots 1 | . . . . . 1 . . . Rammed 8 | . 1 2 . . 5 . . . Targets Rammed 8 | . 1 2 . . 5 . . . Kicked . | . . . . . . . . . Crushed . | . . . . . . . . . Highest Temperature . | . . . . . . . . . Average Temperature . | . . . . . . . . . Received Heat Transfer 238 | . . . 54 . . . . 184 Siege Activations . | . . . . . . . . . Robots Corrupted . | . . . . . . . . . Combat Hostiles . | . . . . . . . . . Parts Fried . | . . . . . . . . . Impact Corruptions . | . . . . . . . . . Robots Melted . | . . . . . . . . . Combat Hostiles . | . . . . . . . . . Parts Melted . | . . . . . . . . . Heat Transferred . | . . . . . . . . . Parts Sabotaged . | . . . . . . . . . Parts Stolen . | . . . . . . . . . Parts Stripped . | . . . . . . . . . Power Chain Reactions . | . . . . . . . . . Missiles Intercepted . | . . . . . . . . . Alert | -11 -10 -9 -8 -7 -6 -5 -5 -4 ------- Run | Scr Mat Mat Mat Fac Fac Fac DSF Fac Peak Influence 55 | . 15 20 53 38 50 29 20 55 Initial 24 | . . 5 8 23 18 24 20 10 Average 28 | . 2 8 36 28 43 24 20 30 Maximum Alert Level . | . . . . . . . . . Low Security (%) 100 | 100 100 100 100 100 100 100 100 100 Level 1 . | . . . . . . . . . Level 2 . | . . . . . . . . . Level 3 . | . . . . . . . . . Level 4 . | . . . . . . . . . Level 5 . | . . . . . . . . . High Security . | . . . . . . . . . Max Security . | . . . . . . . . . Squads Dispatched 3 | . . . 1 1 1 . . . Investigation . | . . . . . . . . . Extermination . | . . . . . . . . . Reinforcement 3 | . . . 1 1 1 . . . Assault . | . . . . . . . . . Garrison . | . . . . . . . . . Intercept . | . . . . . . . . . Searches Triggered . | . . . . . . . . . Construction Impeded 1 | . . . . . 1 . . . Haulers Reinforced . | . . . . . . . . . Active Scanning Responses . | . . . . . . . . . Cargo Convoy Interrupts . | . . . . . . . . . Stealth | -11 -10 -9 -8 -7 -6 -5 -5 -4 --------- Run | Scr Mat Mat Mat Fac Fac Fac DSF Fac Distress Signals 1 | . . . 1 . . . . . Communications Jammed . | . . . . . . . . . Distress Signals . | . . . . . . . . . Times Spotted 19 | . 1 1 5 3 2 . 1 6 Peak Tracking Total 5 | . 1 1 5 2 2 . 1 4 Tactical Retreats 2 | . . . . . . . . 2 Traps | -11 -10 -9 -8 -7 -6 -5 -5 -4 ------- Run | Scr Mat Mat Mat Fac Fac Fac DSF Fac Traps Triggered 1 | . . . . . . . 1 . Indirectly . | . . . . . . . . . Trap Hack Attempts . | . . . . . . . . . Triggered . | . . . . . . . . . Disarmed . | . . . . . . . . . Reprogrammed . | . . . . . . . . . Reused . | . . . . . . . . . Traps Extracted . | . . . . . . . . . Installed . | . . . . . . . . . Triggered . | . . . . . . . . . Machines | -11 -10 -9 -8 -7 -6 -5 -5 -4 ---------- Run | Scr Mat Mat Mat Fac Fac Fac DSF Fac Machines Disabled . | . . . . . . . . . Max in Single Turn . | . . . . . . . . . Machines Sabotaged . | . . . . . . . . . Garrisons Compromised . | . . . . . . . . . Overloaded Fab Kills . | . . . . . . . . . Hacking | -11 -10 -9 -8 -7 -6 -5 -5 -4 --------- Run | Scr Mat Mat Mat Fac Fac Fac DSF Fac Machines Accessed 1 | . . . . . . 1 . . Terminals 1 | . . . . . . 1 . . Fabricators . | . . . . . . . . . Repair Stations . | . . . . . . . . . Recycling Units . | . . . . . . . . . Scanalyzers . | . . . . . . . . . Garrison Access . | . . . . . . . . . Total Hacks 1 | . . . . . . 1 . . Successful 1 | . . . . . . 1 . . Failed . | . . . . . . . . . Catastrophic . | . . . . . . . . . Database Lockouts . | . . . . . . . . . Manual . | . . . . . . . . . Terminals 1 | . . . . . . 1 . . Fabricators . | . . . . . . . . . Repair Stations . | . . . . . . . . . Recycling Units . | . . . . . . . . . Scanalyzers . | . . . . . . . . . Garrison Access . | . . . . . . . . . Terminal Hacks 1 | . . . . . . 1 . . Open DSF 1 | . . . . . . 1 . . Fabricator Hacks . | . . . . . . . . . Repair Station Hacks . | . . . . . . . . . Recycling Unit Hacks . | . . . . . . . . . Scanalyzer . | . . . . . . . . . Garrison Access Hacks . | . . . . . . . . . Unauthorized Hacks . | . . . . . . . . . Terminals . | . . . . . . . . . Fabricators . | . . . . . . . . . Repair Stations . | . . . . . . . . . Recycling Units . | . . . . . . . . . Scanalyzers . | . . . . . . . . . Garrison Access . | . . . . . . . . . Data Cores Recovered . | . . . . . . . . . Used . | . . . . . . . . . Hacking Detections . | . . . . . . . . . Full Trace Events . | . . . . . . . . . Feedback Events . | . . . . . . . . . Feedback Blocked . | . . . . . . . . . Robot Schematics Acquired . | . . . . . . . . . Robots Built . | . . . . . . . . . Authchips . | . . . . . . . . . Time . | . . . . . . . . . Total Robot Build Rating . | . . . . . . . . . Part Schematics Acquired . | . . . . . . . . . Parts Built . | . . . . . . . . . Authchips . | . . . . . . . . . Time . | . . . . . . . . . Total Part Build Rating . | . . . . . . . . . Parts Repaired . | . . . . . . . . . Time . | . . . . . . . . . Parts Recycled . | . . . . . . . . . Recycled Matter . | . . . . . . . . . Retrieved Matter . | . . . . . . . . . Retrieved Components . | . . . . . . . . . Parts Scanalyzed . | . . . . . . . . . Part Schematics Acquired . | . . . . . . . . . Parts Damaged . | . . . . . . . . . Bothacking | -11 -10 -9 -8 -7 -6 -5 -5 -4 ------------ Run | Scr Mat Mat Mat Fac Fac Fac DSF Fac Used RIF Installer . | . . . . . . . . . Robots Hacked . | . . . . . . . . . Non-combat . | . . . . . . . . . Combat . | . . . . . . . . . Robot Hacks Applied . | . . . . . . . . . Relay Couplers Released . | . . . . . . . . . Fabnet Peak Effective % . | . . . . . . . . . Robots Rewired . | . . . . . . . . . Allies Hacked . | . . . . . . . . . Hacks Repelled . | . . . . . . . . . Allies | -11 -10 -9 -8 -7 -6 -5 -5 -4 -------- Run | Scr Mat Mat Mat Fac Fac Fac DSF Fac Total Allies . | . . . . . . . . . Largest Group . | . . . . . . . . . Highest-Rated Group . | . . . . . . . . . Highest-Rated Ally . | . . . . . . . . . Total Orders . | . . . . . . . . . Ally Attacks . | . . . . . . . . . Total Damage . | . . . . . . . . . Kills . | . . . . . . . . . Allies Corrupted . | . . . . . . . . . Allies Melted . | . . . . . . . . . Intel | -11 -10 -9 -8 -7 -6 -5 -5 -4 ------- Run | Scr Mat Mat Mat Fac Fac Fac DSF Fac Robot Analysis Total . | . . . . . . . . . Derelict Logs Recovered . | . . . . . . . . . Drone Launches . | . . . . . . . . . Drone Recoveries . | . . . . . . . . . Exploration | -11 -10 -9 -8 -7 -6 -5 -5 -4 ------------- Run | Scr Mat Mat Mat Fac Fac Fac DSF Fac Turns Passed 418 | 3 17 44 33 83 84 25 27 102 Spaces Moved 782 | 1 32 81 65 163 137 49 53 201 Core 782 | 1 32 81 65 163 137 49 53 201 Treads . | . . . . . . . . . Legs . | . . . . . . . . . Wheels . | . . . . . . . . . Hover . | . . . . . . . . . Flight . | . . . . . . . . . Fastest Speed 50 | 50 50 50 50 50 50 50 50 50 Average Speed 50 | 50 50 50 50 50 50 50 50 50 Slowest Speed 50 | 50 50 50 50 50 50 50 50 50 Overloaded Moves . | . . . . . . . . . Propulsion Burnouts . | . . . . . . . . . Robots Hopped . | . . . . . . . . . Cave-ins Triggered . | . . . . . . . . . Exploration Rate (%) 15 | 2 10 12 10 9 8 2 81 7 Regions Visited 8 Branch Regions . Pre-discovered Areas . | . . . . . . . . . Known Exits Taken 1 | . . . . . . 1 . . Unknown Exits Taken 6 | 1 1 1 1 1 1 . . . Scrap Searched . | . . . . . . . . . Spaces Dug . | . . . . . . . . . Terrain Destroyed 25 | . . . . . 25 . . . Melee . | . . . . . . . . . Projectile . | . . . . . . . . . AOE 25 | . . . . . 25 . . . Terrain Rammed . | . . . . . . . . . Walls Destroyed . | . . . . . . . . . Machines Disabled . | . . . . . . . . . Actions | -11 -10 -9 -8 -7 -6 -5 -5 -4 --------- Run | Scr Mat Mat Mat Fac Fac Fac DSF Fac Total 798 | 5 32 83 64 163 148 48 53 202 Wait . | . . . . . . . . . Move 775 | . 31 80 64 162 137 48 52 201 Hop . | . . . . . . . . . Pick Up 4 | . . 1 . 1 1 . . 1 Fast Attach . | . . . . . . . . . Attach 1 | . . . . . 1 . . . Detach 1 | . . . . . 1 . . . Swap . | . . . . . . . . . Drop 5 | 5 . . . . . . . . Fire 4 | . . . . . 4 . . . Melee . | . . . . . . . . . Ram 7 | . 1 2 . . 4 . . . Kick . | . . . . . . . . . Crush . | . . . . . . . . . Escape Stasis . | . . . . . . . . . Rewire 1 | . . . . . . . 1 . Trap . | . . . . . . . . . Miscellaneous . | . . . . . . . . . Route ------- -11/Scrapyard -10/Materials -9/Materials -8/Materials -7/Factory -6/Factory (discovered 2 exits: *Fac x2) -5/Factory -5/DSF -4/Factory History --------- Turn | Location | Event 1 | -11/Scrapyard | Released all parts (6) 4 | -11/Scrapyard | Discovered new exit (range 0) 4 | -11/Scrapyard | Entered Materials 19 | -10/Materials | Discovered new exit (range 5) 21 | -10/Materials | Entered another Materials area 21 | -9/Materials | Evolved 2 slots: Power x2 59 | -9/Materials | Discovered new exit (range 12) 65 | -9/Materials | Entered another Materials area 65 | -8/Materials | Evolved 2 slots: Power x2 90 | -8/Materials | Discovered new exit (range 16) 98 | -8/Materials | Entered Factory 98 | -7/Factory | Evolved 2 slots: Power x2 178 | -7/Factory | Discovered new exit (range 5) 181 | -7/Factory | Entered another Factory area 181 | -6/Factory | Evolved 2 slots: Power x2 252 | -6/Factory | Discovered new exit (range 14) 260 | -6/Factory | Discovered new exit (range 10) 265 | -6/Factory | Entered another Factory area 265 | -5/Factory | Evolved 2 slots: Power x2 289 | -5/Factory | Identified exit to DSF 290 | -5/Factory | Entered DSF 302 | -5/DSF | Build established: Mutant 310 | -5/DSF | Discovered new exit (range 15) 317 | -5/DSF | Additional patrols routed to DSF 317 | -5/DSF | Entered Factory 317 | -4/Factory | Evolved 2 slots: Power x2 417 | -4/Factory | Core integrity fell below 50% 419 | -4/Factory | Self-destructed Last Messages --------------- AMBIENT_HEAT=-10 GOAL=ESCAPE 00298_ Penetrated by Slug. 00298_ Triggered Alarm Trap. 00298_ An alarm sounds. 00301_ Knocked back. 00303_ Attempting to rewire A-15 Conveyor. 00303_ A-15 Conveyor is unpowered. 00303_ Knocked back. 00310_ EXIT=FOUND 00317_ DSF_058 integrity compromised, routing additional patrols. PARAMETERS=POWER+2 LOCATION=UNKNOWN GOAL=ESCAPE 00326_ Critical hit (Burn: +50). 00326_ K-01 Serf collects debris. 00355_ K-01 Serf cleans the DSF Access. 00406_ Acquired Force Lance. 00409_ Connecting with Terminal... 00409_ Current location identified: Factory Map ----- +----------------------------------------------------+ | #????????????????????????????????????????? | | #????????????????????????????????????????? | | ##/#+##########??????????????????????????????????? | | #? #??????????????????????############# | | # #??????????????????????# | | # #??????????????????????# | | + |% #??????????????????????# | | # | #??????????????????????# | | # | #??????????????????????# | | #? #??????????????????????# | | #? #??????????????????????# | | #?? #??????????????????????# | | #??#######??????????????????????# | | #?????????????????#####?????????? ] | | #????????????????? = #???????????? ? | | #????????????????? #?####????????? ??? | | ########?????# """ !###T ############+###?? | | #?????# """ # #?? | | #?????# ! # #?? | | #?????# """ + #?? | | #?????# """ ! # #?? | | #?????# """ # #?? | | #+##### #??????? ??# ###+###########?? | | ??# ##########+##### # g ! #?? | | " """ # g ] #?? | | " """ # @ g # #?? | | " """ # # #?? | | # # """"T"""" #?? | | " """ # # """"""""""" #?? | | " ""??#########+##############+#################?? | | " "?????????? ?????# !#??????????? | | ???????? """???# """"""""" #??????????? | | ??????# !! """""?# !#??????????? | | ??????# !! """ ?# #??????????? | | ? ???????# # """"T"""" #??????????? | | ?#???????# ???# """"""""""" #??????????? | | ?????????############??#############??#??????????? | | | | | | | | | | | | | | | | | | | | | | | | | | | +----------------------------------------------------+ Best States ------------- Heat Dissipation 43 Energy Generation 5 Energy Capacity 100 Matter Stores 300 Matter Capacity 300 Sight Range 16 Terrain Scan Density 10 Evasion (%) 50 Item Schematics ----------------- None Robot Schematics ------------------ None Fabricated ------------ Nothing Alien Tech Used ----------------- None Achievements -------------- None Challenges ------------ None Game ------ Seed helloworld Manual? 1 Play Time 00:09:24 Cumulative 252.5 hours Start 2022.05.13 @ 00:20:34 End 2022.05.13 @ 00:28:55 Sessions 1 Manual Loads 0 Difficulty Rogue Special Mode None Game No. 368 Rogue 365 Adventurer 0 Explorer 3 Win Type - Total 8 Types 8/0/0/0/0/0/0/0/0 Lore% 71 Gallery% 75 Achievement% 62 Wizard Run 0 Options --------- ASCII 1 Keyboard 1 Movement Vi Keybinds 0 Fullscreen 1 Font 18/SmallcapsGlow Map View 76x50 Tactical HUD 1 Map Filters NONE Filters NONE Steam 1 RUN: bbffe43f-bf29-477f-a914-a331db24d248